Workbook

Sheet Druck-Layout
A9: Berechnungsprotokoll
C13: Bachelorarbeit
C16: Fabian Böttinger
A19: Nachgiebiger Verbund - Möglichkeiten der Modellierung
A22: Partial Interaction ­ Ways of Software­supported modelling
B28: Inhaltsverzeichnis
B32: Ausgangssituation und Eingangsgrößen…............................................ | F32: Seite 1
B33: Gammaverfahren für den Anfangszustand (t=0)…...................................................... | F33: Seite 2
B34: Gammaverfahren für den Endzustand (t=ꝏ)….................................................... | F34: Seite 3
B35: Schubanalogieverfahren nach Kreuzinger…............................................................ | F35: Seite 4
B36: Stabwerksmodelle nach Rautenstrauch.............................................................................. | F36: Seite 5
B37: Zweistabmodell (Federmodell)....................................................................................... | F37: Seite 6
B42: Bearbeiter: | D42: Fabian | E42: Böttinger
B45: Betreuer: | C45: Prof. Dr. Ing | D45: Martin | E45: Synold
A50: Ausgangsstiutation und Eingangsgrößen
A53: Ausgangssystem | D53: Belastung
E56: char. Streckenlast | F56: ='Gamma-Verfahren_nach_DIN1052'!D9 -> 3.75 | G56: KN/m | H56: System | I56: ='Gamma-Verfahren_nach_DIN1052'!D12 -> Einfeldträger
E57: Feldlänge L | F57: ='Gamma-Verfahren_nach_DIN1052'!D13 -> 6 | G57: m
H58: Querschnitte | I58: ='Gamma-Verfahren_nach_DIN1052'!D26 -> 2
E60: max. Moment Md | F60: ='Gamma-Verfahren_nach_DIN1052'!D10 -> 24.3 | G60: KNm
E62: max. Querkraft Vd | F62: ='Gamma-Verfahren_nach_DIN1052'!D11 -> 16.2 | G62: KN
A67: Umgebungsbedingungen
A68: Nutzungsklasse | D68: ='Gamma-Verfahren_nach_DIN1052'!D18 -> 1
A69: Kategorie | D69: ='Gamma-Verfahren_nach_DIN1052'!D19 -> Kategorie A: Wohn- und Aufenthaltsräume
A70: KLED | D70: ='Gamma-Verfahren_nach_DIN1052'!D20 -> mittel
A71: Einbaufeuchte | D71: ='Gamma-Verfahren_nach_DIN1052'!D22 -> <30%
A74: Querschnittswerte | D74: Querschnitt 1 | E74: Querschnitt 2 | F74: Querschnitt 3
A75: Material | D75: ='Gamma-Verfahren_nach_DIN1052'!D30 -> Beton | E75: ='Gamma-Verfahren_nach_DIN1052'!E30 -> Vollholz | F75: ='Gamma-Verfahren_nach_DIN1052'!F30 -> Vollholz
A76: Festigkeitsklasse | D76: ='Gamma-Verfahren_nach_DIN1052'!D31 -> C30/37 | E76: ='Gamma-Verfahren_nach_DIN1052'!E31 -> C24 | F76: ='Gamma-Verfahren_nach_DIN1052'!F31 -> C30
A77: Rohdichte [Kg/m³] | D77: ='Gamma-Verfahren_nach_DIN1052'!D32 -> 2500 | E77: ='Gamma-Verfahren_nach_DIN1052'!E32 -> 350 | F77: ='Gamma-Verfahren_nach_DIN1052'!F32 -> 380
A78: E-Modul [N/mm²] | D78: ='Gamma-Verfahren_nach_DIN1052'!D33 -> 33000 | E78: ='Gamma-Verfahren_nach_DIN1052'!E33 -> 11000 | F78: ='Gamma-Verfahren_nach_DIN1052'!F33 -> 12000
A79: Querschnittsfläche Ai [mm²] | D79: ='Gamma-Verfahren_nach_DIN1052'!F42 -> 37500 | E79: ='Gamma-Verfahren_nach_DIN1052'!F43 -> 24000 | F79: ='Gamma-Verfahren_nach_DIN1052'!F44 -> 0
A80: Trägheitsmoment Iy [mm4] | D80: =_xlfn.ANCHORARRAY('Gamma-Verfahren_nach_DIN1052'!G42) -> 11250000 | E80: ='Gamma-Verfahren_nach_DIN1052'!G43 -> 80000000 | F80: ='Gamma-Verfahren_nach_DIN1052'!G44 -> 0
A83: Verbindungsmittel | D83: Schubfuge 1 | F83: Schubfuge 2
A84: Bezeichnung des Verbindungsmittels | D84: =IF('Gamma-Verfahren_nach_DIN1052'!J31=Verbindungsmittel!C17,'Gamma-Verfahren_nach_DIN1052'!J38,'Gamma-Verfahren_nach_DIN1052'!J31) -> ASSY PLUS VG - Würth | F84: =IF('Gamma-Verfahren_nach_DIN1052'!K31=Verbindungsmittel!C17,'Gamma-Verfahren_nach_DIN1052'!K38,'Gamma-Verfahren_nach_DIN1052'!K31) -> Nägel (vorgebohrt)
A85: Verbindungsmittel Durchmesser [mm] | D85: ='Gamma-Verfahren_nach_DIN1052'!J32 -> 6 | F85: ='Gamma-Verfahren_nach_DIN1052'!K32 -> 5
A86: Verschiebungsmodul Kser [N/mm] | D86: =IF('Gamma-Verfahren_nach_DIN1052'!J31=Verbindungsmittel!C17,'Gamma-Verfahren_nach_DIN1052'!J37,'Gamma-Verfahren_nach_DIN1052'!J33) -> 15000 | F86: =IF('Gamma-Verfahren_nach_DIN1052'!K31=Verbindungsmittel!C17,'Gamma-Verfahren_nach_DIN1052'!K37,'Gamma-Verfahren_nach_DIN1052'!K33) -> 1514.017514
A87: Anzahl der Verbindungsmittelreihen | D87: ='Gamma-Verfahren_nach_DIN1052'!J43 -> 1 | F87: ='Gamma-Verfahren_nach_DIN1052'!K43 -> 1
A88: eff. Verbindungsmittelabstand si [mm] | D88: ='Gamma-Verfahren_nach_DIN1052'!J46 -> 100 | F88: ='Gamma-Verfahren_nach_DIN1052'!K46 -> 0
A89: Art der Verbindung | D89: ='Gamma-Verfahren_nach_DIN1052'!J34 -> Holz-Holz-Verbindung | F89: ='Gamma-Verfahren_nach_DIN1052'!K34 -> Holz-Holz-Verbindung
F95: Bearbeiter: | G95: BF
F96: Datum: | G96: =TODAY() -> 2021-08-04
G98: Seite 1/6
A99: Gammaverfahren im Anfangszustand (t=0)
A103: Elastizitätsmodul [N/mm²] | D103: Querschnitt 1 | E103: Querschnitt 2 | F103: Querschnitt 3
A105: GZT | D105: ='Gamma-Verfahren_nach_DIN1052'!D54 -> 33000 | E105: ='Gamma-Verfahren_nach_DIN1052'!D55 -> 11000 | F105: ='Gamma-Verfahren_nach_DIN1052'!D56 -> 12000
A106: GZG | D106: ='Gamma-Verfahren_nach_DIN1052'!N54 -> 33000 | E106: ='Gamma-Verfahren_nach_DIN1052'!N55 -> 11000 | F106: ='Gamma-Verfahren_nach_DIN1052'!N56 -> 12000
A108: Verschiebungsmodul Kser | D108: Schubfuge 1 | F108: Schubfuge 2
A110: GZT | D110: ='Gamma-Verfahren_nach_DIN1052'!D57 -> 10000 | F110: ='Gamma-Verfahren_nach_DIN1052'!D58 -> 1009.345009
A111: GZG | D111: ='Gamma-Verfahren_nach_DIN1052'!N57 -> 15000 | F111: ='Gamma-Verfahren_nach_DIN1052'!N58 -> 1514.017514
A113: Verbindungsart | D113: ='Gamma-Verfahren_nach_DIN1052'!D59 -> Holz-Holz-Verbindung
A116: Nachgiebigkeitskoeffizient | D116: GZT | F116: GZG
C118: γ1 [-] | D118: ='Gamma-Verfahren_nach_DIN1052'!D64 -> 0.2278300046 | F118: ='Gamma-Verfahren_nach_DIN1052'!N64 -> 0.3067963051
C119: γ2 [-] | D119: ='Gamma-Verfahren_nach_DIN1052'!D65 -> 1 | F119: ='Gamma-Verfahren_nach_DIN1052'!N65 -> 1
C120: γ3 [-] | D120: ='Gamma-Verfahren_nach_DIN1052'!D66 -> 0 | F120: ='Gamma-Verfahren_nach_DIN1052'!N66 -> 0
A122: Lage der Spannungsnulllinie (SNL) | D122: GZT | F122: GZG
C124: a2 [mm] | D124: ='Gamma-Verfahren_nach_DIN1052'!D71 -> 67.13590649 | F124: ='Gamma-Verfahren_nach_DIN1052'!N71 -> 76.67995961
C125: a1 [mm] | D125: ='Gamma-Verfahren_nach_DIN1052'!D72 -> 62.86409351 | F125: ='Gamma-Verfahren_nach_DIN1052'!N72 -> 53.32004039
C126: a3 [mm] | D126: ='Gamma-Verfahren_nach_DIN1052'!D73 -> 0 | F126: ='Gamma-Verfahren_nach_DIN1052'!N73 -> 0
A133: effektive Biegesteifigkeit EIef | D133: GZT | F133: GZG
C135: EIef [Nmm²] | D135: ='Gamma-Verfahren_nach_DIN1052'!D78 -> 3.555354311e+12 | F135: ='Gamma-Verfahren_nach_DIN1052'!N78 -> 3.882906214e+12
C136: EIef [KNm²] | D136: =D135/10^9 -> 3555.354311 | F136: =F135/10^9 -> 3882.906214
F144: Bearbeiter: | G144: BF
F145: Datum: | G145: =TODAY() -> 2021-08-04
G147: Seite 2/6
A148: Gammaverfahren im Anfangszustand (t=ꝏ)
A152: Elastizitätsmodul [N/mm²] | D152: Querschnitt 1 | E152: Querschnitt 2 | F152: Querschnitt 3
A154: GZT | D154: ='Gamma-Verfahren_nach_DIN1052'!I54 -> 18857.14286 | E154: ='Gamma-Verfahren_nach_DIN1052'!I55 -> 9322.033898 | F154: ='Gamma-Verfahren_nach_DIN1052'!I56 -> 10169.49153
A155: GZG | D155: ='Gamma-Verfahren_nach_DIN1052'!S54 -> 9428.571429 | E155: ='Gamma-Verfahren_nach_DIN1052'!S55 -> 6875 | F155: ='Gamma-Verfahren_nach_DIN1052'!S56 -> 7500
A157: Verschiebungsmodul Kser | D157: Schubfuge 1 | F157: Schubfuge 2
A159: GZT | D159: ='Gamma-Verfahren_nach_DIN1052'!I57 -> 5764.19733 | F159: ='Gamma-Verfahren_nach_DIN1052'!I58 -> 742.165448
A160: GZG | D160: ='Gamma-Verfahren_nach_DIN1052'!S57 -> 4348.469228 | F160: ='Gamma-Verfahren_nach_DIN1052'!S58 -> 688.1897791
A162: Verbindungsart | D162: ='Gamma-Verfahren_nach_DIN1052'!I59 -> Holz-Holz-Verbindung
A165: Nachgiebigkeitskoeffizient | D165: GZT | F165: GZG
C167: γ1 [-] | D167: ='Gamma-Verfahren_nach_DIN1052'!I64 -> 0.2293635624 | F167: ='Gamma-Verfahren_nach_DIN1052'!S64 -> 0.3098965006
C168: γ2 [-] | D168: ='Gamma-Verfahren_nach_DIN1052'!I65 -> 1 | F168: ='Gamma-Verfahren_nach_DIN1052'!S65 -> 1
C169: γ3 [-] | D169: ='Gamma-Verfahren_nach_DIN1052'!I66 -> 0 | F169: ='Gamma-Verfahren_nach_DIN1052'!S66 -> 0
A171: Lage der Spannungsnulllinie (SNL) | D171: GZT | F171: GZG
C173: a2 [mm] | D173: ='Gamma-Verfahren_nach_DIN1052'!I71 -> 54.63561413 | F173: ='Gamma-Verfahren_nach_DIN1052'!S71 -> 51.8780014
C174: a1 [mm] | D174: ='Gamma-Verfahren_nach_DIN1052'!I72 -> 75.36438587 | F174: ='Gamma-Verfahren_nach_DIN1052'!S72 -> 78.1219986
C175: a3 [mm] | D175: ='Gamma-Verfahren_nach_DIN1052'!I73 -> 0 | F175: ='Gamma-Verfahren_nach_DIN1052'!S73 -> 0
A182: effektive Biegesteifigkeit EIef | D182: GZT | F182: GZG
C184: EIef [Nmm²] | D184: ='Gamma-Verfahren_nach_DIN1052'!I78 -> 2.546968516e+12 | F184: ='Gamma-Verfahren_nach_DIN1052'!S78 -> 1.768854559e+12
C185: EIef [KNm²] | D185: =D184/10^9 -> 2546.968516 | F185: =F184/10^9 -> 1768.854559
F192: Bearbeiter: | G192: BF
F193: Datum: | G193: =TODAY() -> 2021-08-04
G195: Seite 3/6
A196: Schubanalogieverfahren nach Kreuzinger
A212: Ebene A: | C212: Anfangszustand | E212: Endzustand
C213: ='Weitere Verfahren'!D8 -> 1251250000000 | E213: ='Weitere Verfahren'!F8 -> 9.57905569e+11 | G213: [N/mm²] | I213: Text Weiß
A214: BA | C214: ='Weitere Verfahren'!D9 -> 1251.25 | E214: ='Weitere Verfahren'!F9 -> 957.905569 | G214: [KN/m²]
A216: SA | C216: ∞ | E216: ∞
A220: Ebene B: | C220: Anfangszustand | E220: Endzustand
C221: ='Weitere Verfahren'!D26 -> 3.677142857e+12 | E221: ='Weitere Verfahren'!F26 -> 2.872274678e+12 | G221: [N/mm²] | I221: Text Weiß
A222: BB | C222: ='Weitere Verfahren'!D27 -> 3677.142857 | E222: ='Weitere Verfahren'!F27 -> 2872.274678 | G222: [KN/m²]
A224: SB | C224: ='Weitere Verfahren'!D34 -> 1690 | E224: ='Weitere Verfahren'!F34 -> 1126.666667 | G224: [KN]
F241: Bearbeiter: | G241: BF
F242: Datum: | G242: =TODAY() -> 2021-08-04
G244: Seite 4/6
A245: Stabwerksmodelle nach Rautenstrauch
A265: Ohne Berücksichtigung der Gurtsteifigkeit:
A267: Ersatzsteifigkeit | C267: Anfangszustand | E267: Endzustand
A269: GZT | B269: EI* | C269: ='Weitere Verfahren'!D56 -> 3.423333333 | E269: ='Weitere Verfahren'!F56 -> 1.973276886 | G269: [KN/m²]
A275: Mit Berücksichtigung der Gurtsteifigkeit:
A277: Ersatzsteifigkeit | C277: Anfangszustand | E277: Endzustand
C279: ='Weitere Verfahren'!D65 -> 3427271233 | E279: ='Weitere Verfahren'!F65 -> 1974951428 | G279: [N/mm²] | I279: Zeile - Text weiß
B280: EI* | C280: =C279/10^9 -> 3.427271233 | E280: =E279/10^9 -> 1.974951428 | G280: [KN/m²]
A283: Mit:
A284: el [mm] | B284: ='Weitere Verfahren'!D74 -> 100
A285: er [mm] | B285: ='Weitere Verfahren'!D75 -> 100
A286: Ks [N/mm] | B286: ='Gamma-Verfahren_nach_DIN1052'!J33 -> 15000
F290: Bearbeiter: | G290: BF
F291: Datum: | G291: =TODAY() -> 2021-08-04
G293: Seite 5/6
A294: Zweistabmodell / Federmodell
A313: Schubfuge 1: | C313: Anfangszustand | E313: Endzustand
A315: GZT | B315: KFeder | C315: ='Weitere Verfahren'!D92 -> 10000 | E315: ='Weitere Verfahren'!F92 -> 5764.19733 | G315: [N/mm]
A316: GZG | B316: KFeder | C316: ='Weitere Verfahren'!D93 -> 15000 | E316: ='Weitere Verfahren'!F93 -> 4348.469228 | G316: [N/mm]
A320: Schubfuge 2: | C320: Anfangszustand | E320: Endzustand
A322: GZT | B322: KFeder | C322: ='Weitere Verfahren'!D100 -> 1009.345009 | E322: ='Weitere Verfahren'!F100 -> 742.165448 | G322: [N/mm]
A323: GZG | B323: KFeder | C323: ='Weitere Verfahren'!D101 -> 1514.017514 | E323: ='Weitere Verfahren'!F101 -> 688.1897791 | G323: [N/mm]
A329: Modellierungshilfe:
A331: Abstand der Bauteil-Schwerachsen: | D331: a | E331: ='Weitere Verfahren'!F107 -> 130 | G331: [mm]
A332: Abstand der Verbindungsmittel: | D332: si | E332: ='Weitere Verfahren'!F108 -> 100 | G332: [mm]
A333: Abstand Schwerachse 1 zu Feder: | D333: a1 | E333: ='Weitere Verfahren'!F109 -> 30 | G333: [mm]
A334: Abstand Schwerachse 2 zu Feder: | D334: a2 | E334: ='Weitere Verfahren'!F110 -> 100 | G334: [mm]
F339: Bearbeiter: | G339: BF
F340: Datum: | G340: =TODAY() -> 2021-08-04
G342: Seite 6/6

Sheet Nachweise
A1: Nachweise des Holzquerschnittes
A3: Für das: | C3: Gammaverfahren zum Zeitpunkt t=0 | H3: <-- Verfahren Wählen (greift auf "Ergebnisse aus Statik" zu)
A4: Nachweis auf Biegung und Zug
A5: Aus Normalkraft:
H6: Holz | I6: Normalkraft | J6: =VLOOKUP(C3,'Ergebnisse aus Statik '!B5:H17,2,0)*1000 -> 121270 | K6: N
B7: σt,0,d | D7: =J6/'Gamma-Verfahren_nach_DIN1052'!F43 -> 5.052916667 | E7: [N/mm²] | I7: Moment | J7: =VLOOKUP(C3,'Ergebnisse aus Statik '!B5:H17,3,0)*10^6 -> 6010000 | K7: Nmm
I8: Querkraft | J8: =VLOOKUP(C3,'Ergebnisse aus Statik '!B5:H17,4,0)*1000 -> 16800 | K8: N
B9: ft,0,d | D9: =('Gamma-Verfahren_nach_DIN1052'!E38/1.3)*Werkstoffkenngrößen!G7 -> 11.69230769 | E9: [N/mm²]
A12: Aus Biegemoment:
I13: Schnellübersicht:
B14: σm,0,d | D14: =(J7/'Gamma-Verfahren_nach_DIN1052'!G43)*'Gamma-Verfahren_nach_DIN1052'!E43/2 -> 7.5125 | E14: [N/mm²]
B16: ft,0,d | D16: =('Gamma-Verfahren_nach_DIN1052'!E38/1.3)*Werkstoffkenngrößen!I7 -> 18.46153846 | E16: [N/mm²] | I16: Holzquerschnitt
A18: Nachweis: | I18: Biegung und Zug | L18: =D20 -> 0.8390844298 | M18: < | N18: 1
D20: =(D7/D9)+(D14/D16) -> 0.8390844298 | E20: < | F20: 1 | I20: Querkrafttragfähigkeit | L20: =D31 -> 0.284375 | M20: < | N20: 1
A22: Nachweis der Querkrafttragfähigkeit
I23: Betonquerschnitt
B25: τd | D25: =J8/'Gamma-Verfahren_nach_DIN1052'!F43 -> 0.7 | E25: [N/mm²] | I25: Betondruckzone | L25: =D70 -> 0.5881882353
B27: fv,d | D27: =('Gamma-Verfahren_nach_DIN1052'!E38/1.3)*Werkstoffkenngrößen!J7 -> 2.461538462 | E27: [N/mm²] | I27: Betonzugzone | K27: VEd | L27: =D84 -> -0.190227451
K28: μEd | L28: =D86 -> 0.06632679739
A29: Nachweis:
I30: !!!!Keine Computergestütze Auswertung des Interaktionsdiagrammes!!!!
D31: =D25/D27 -> 0.284375 | E31: < | F31: 1
I32: Querkrafttragfähigkeit | L32: =D160 -> 0.09758240556 | M32: < | N32: 1
I36: Verbindungsmittel
I38: Kraft auf Verbindungsmittel | L38: =VLOOKUP(C3,'Ergebnisse aus Statik '!B5:I16,8,0) -> 8.076 | M38: [KN]
A50: Nachweise der Betonplatte
A52: Nachweis der Betondruckzone
A54: Aus Normalkraft:
B56: σN,0,d | D56: =J57/'Gamma-Verfahren_nach_DIN1052'!F42 -> -3.233866667 | E56: [N/mm²]
H57: Beton | I57: Normalkraft | J57: =VLOOKUP(C3,'Ergebnisse aus Statik '!B5:H17,5,0)*1000 -> -121270 | K57: N
A58: Aus Biegemoment: | I58: Moment | J58: =VLOOKUP(C3,'Ergebnisse aus Statik '!B5:H17,6,0)*10^6 -> 2537000 | K58: Nmm
I59: Querkraft | J59: =VLOOKUP(C3,'Ergebnisse aus Statik '!B5:H17,7,0)*1000 -> 4837.5 | K59: N
B60: σm,0,d | D60: =(J58/'Gamma-Verfahren_nach_DIN1052'!G42)*'Gamma-Verfahren_nach_DIN1052'!E42/2 -> 6.765333333 | E60: [N/mm²]
A62: Superposition:
B64: σc,0,d | D64: =ABS(D56)+ABS(D60) -> 9.9992 | E64: [N/mm²]
B66: fc,d | D66: =(0.85/1.5)*30 -> 17 | E66: [N/mm²]
A68: Nachweis:
D70: =D64/D66 -> 0.5881882353 | E70: < | F70: 1
A74: Nachweis der Betonzugzone
A76: Ausmitte:
B78: e | D78: =ABS(J58/J57) -> 20.92026058 | E78: mm
B80: e/hc | D80: =D78/'Gamma-Verfahren_nach_DIN1052'!E42 -> 0.3486710096 | E80: < | F80: 0.5
A82: ---> | B82: =IF(D80<F80,"DRUCKBELASTUNG MIT GERINGER AUSMITTE","Überprüfen!") -> DRUCKBELASTUNG MIT GERINGER AUSMITTE
B84: v_Ed | D84: =J57/('Gamma-Verfahren_nach_DIN1052'!F42*Nachweise!D66) -> -0.190227451 | F84: bez. Normalkraft
B86: Mü_Ed | D86: =J58/(('Gamma-Verfahren_nach_DIN1052'!D42*'Gamma-Verfahren_nach_DIN1052'!E42^2)*Nachweise!D66) -> 0.06632679739 | F86: bez. Moment
B90: ωtot
B92: As,tot | E92: [cm²]
A150: Nachweis der Querkrafttragfähigkeit
I151: simga_cp | J151: =ABS(D56) -> 3.233866667
B152: V_Rd,c | D152: =((0.1*2*(100*0.005*30)^(1/3)+0.12*J151)*625*60)/1000 -> 33.04899056 | E152: > | F152: =((0.542+0.12*J151)*625*48)/1000 -> 27.90192
B153: V_Rd,c | D153: =MAX(D152,F152) -> 33.04899056 | E153: [KN]
B155: V_Ed,c | D155: =(J59/1.5)/1000 -> 3.225 | E155: [KN]
A158: Nachweis:
B160: FORMEL | D160: =D155/D152 -> 0.09758240556 | E160: < | F160: 1
A164: Nachweis der Verbindungsmittel
B167: F_Rd | D167: =10028/1000 -> 10.028 | E167: [KN]
B169: F_Vd | D169: =VLOOKUP(C3,'Ergebnisse aus Statik '!B5:I14,8,0) -> 8.076 | E169: [KN]
A171: Nachweis:
B173: FORMEL | D173: =D169/D167 -> 0.8053450339 | E173: < | F173: 1

Sheet Ergebnisse aus Statik
C3: HOLZQUERSCHNITT | F3: BETONQUERSCHNITT | I3: VM
C4: Normalkraft [KN] | D4: Moment [KNm] | E4: Querkraft [KN] | F4: Normalkraft [KN] | G4: Moment [KNm] | H4: Querkraft [KN] | I4: FVEd [KN]
B5: Gammaverfahren zum Zeitpunkt t=0 | C5: 121.27 | D5: 6.01 | E5: 16.8 | F5: -121.27 | G5: 2.537 | H5: 4.8375 | I5: 8.076 | K5: t=0
B6: Gammaverfahren zum Zeitpunkt t=∞ | C6: 116.62 | D6: 7.12 | E6: 17.016 | F6: -116.62 | G6: 2.02 | H6: 4.65 | I6: 7.775 | K6: t=unendlich
B7: Schubanalogieverfahren zum Zeitpunkt t=0 | C7: 137.54 | D7: 4.276 | E7: 12.01 | F7: -137.54 | G7: 1.804 | H7: 3.967 | I7: 8.08
B8: Schubanalogieverfahren zum Zeitpunkt t=∞ | C8: 138.308 | D8: 4.66 | E8: 12.33 | F8: -138.308 | G8: 1.327 | H8: 3.649 | I8: 7.78
B9: Stabwerkmodellverfahren zum Zeitpunkt t=0 | C9: 122.6 | D9: 5.61 | E9: 12.04 | F9: -122.6 | G9: 2.42 | H9: 4.87 | I9: 7.46
B10: Stabwerkmodellverfahren zum Zeitpunkt t=∞ | C10: 137.38 | D10: 4.28 | E10: 13.04 | F10: -137.38 | G10: 1.84 | H10: 4.87 | I10: 8.59
B11: Federmodellverfahren zum Zeitpunkt t=0 | C11: 123.4 | D11: 5.54 | E11: 11.53 | F11: -123.4 | G11: 2.39 | H11: 4.94 | I11: 7.54
B12: Federmodellverfahren zum Zeitpunkt t=∞ | C12: 114.21 | D12: 6.38 | E12: 11.46 | F12: -114.21 | G12: 2.75 | H12: 4.93 | I12: 6.74
B13: Numerische Verfahren gemäß RFEM zum Zeitpunkt t=0 | C13: 125.09 | D13: 5.47 | E13: 9.92 | F13: -125.09 | G13: 2.44 | H13: 5.82 | I13: 7.2
B14: Numerische Verfahren gemäß RFEM zum Zeitpunkt t=∞ | C14: 115.99 | D14: 6.29 | E14: 10.18 | F14: -115.99 | G14: 2.8 | H14: 5.39 | I14: 6
B15: Starrer Verbund zum Zeitpunkt t=0 | C15: 139.47 | D15: 4.34 | E15: 2.98 | F15: -139.47 | G15: 1.83 | H15: 4.65 | I15: 9.3
B16: Starrer Verbund zum Zeitpunkt t=∞ | C16: 140.17 | D16: 4.73 | E16: 3 | F16: -140.17 | G16: 1.35 | H16: 4.69 | I16: 9.345

Sheet Gamma-Verfahren_nach_DIN1052
C3: Gamma-Verfahren nach DIN 1052
C8: Schnittgrößen
C9: char. Streckenlast qk [KN/m] | D9: 3.75
C10: max. Moment Md [KNm] | D10: 24.3 | G10: =D10*10^6 -> 24300000 | H10: Nmm | I10: Querschnittstypen
C11: max. Querkraft Vd [KN] | D11: 16.2 | G11: =D11*1000 -> 16200 | H11: N
C12: Statisches System | D12: Einfeldträger
C13: Feldlänge [m] | D13: 6
C14: Abstand der Momenten-Nullpunkte [m] | D14: =VLOOKUP('Gamma-Verfahren_nach_DIN1052'!D12,Statisches_System!C5:D7,2,0) -> 6
C17: Umgebungsbedingungen
C18: Nutzungsklasse | D18: 1
C19: Kategorie | D19: Kategorie A: Wohn- und Aufenthaltsräume
C20: KLED | D20: mittel
C21: Kombinationsbeiwert Ψ2 | D21: =VLOOKUP(D19,Kombinationsbeiwerte_Ψ!B3:F15,4,0) -> 0.3
C22: Einbaufeuchte | D22: <30%
C25: Querschnittstyp | D25: C
C26: Anzahl Querschnitte | D26: 2
C29: Querschnittswerte | D29: Querschnitt 1 | E29: Querschnitt 2 | F29: Querschnitt 3 | G29: Mittelwert | H29: Mittelwert | I29: Verbindungsmittel | N29: Nettoquerschnitte | Q29: Trägheitsmoment
C30: Material | D30: Beton | E30: Vollholz | F30: Vollholz | J30: VM-Typ QS1/QS2 | K30: VM-Typ QS2/QS3
C31: Festigkeitsklasse | D31: C30/37 | E31: C24 | F31: C30 | G31: QS 1/2 | H31: QS2/3 | I31: VM | J31: Andere | K31: Nägel (vorgebohrt) | N31: A1 | O31: =IF(J32>6,(F42-(J32*J36*J43)),F42) -> 37500 | Q31: I1 | R31: =IF(AND(J32>6,D25="B"),(D42*((E42-(J43*J32))^3))/12,IF(J32>6,((D42-(J43*J32))*(E42^3))/12,G42)) -> 11250000
C32: Rohdichte [Kg/m³] | D32: =VLOOKUP(D31,Werkstoffkenngrößen!C5:E42,3,0) -> 2500 | E32: =VLOOKUP(E31,Werkstoffkenngrößen!C5:E42,3,0) -> 350 | F32: =VLOOKUP(F31,Werkstoffkenngrößen!C5:E42,3,0) -> 380 | G32: =SQRT(D32*E32) -> 935.4143467 | H32: =SQRT(E32*F32) -> 364.6916506 | I32: Durchmesser [mm] | J32: 6 | K32: 5 | N32: A2 | O32: =IF(AND(J32>6,K32>6),(F43-(J36*J43*J32+K36*K43*K32)),IF(J32>6,(F43-(J36*J43*J32)),IF(K32>6,(F43-(K32*K36*K43)),F43))) -> 24000 | Q32: I2 | R32: =IF(AND(J32>6,K32>6,D25="B"),((D43)*(E43-(J43*J32+K43*K32))^3)/12,IF(AND(J32>6,K32>6),((D43-(J43*J32+K43*K32))*(E43^3))/12,IF(AND(K32>6,D25="B"),((D43)*(E43-(K43*K32))^3)/12,IF(K32>6,((D43-(K43*K32))*(E43^3))/12,IF(AND(J32>6,D25="B"),(D43*((E43-(J43*J32))^3))/12,IF(J32>6,((D43-(J43*J32))*(E43^3))/12,G43)))))) -> 80000000
C33: E-Modul [N/mm²] | D33: =VLOOKUP(D31,Werkstoffkenngrößen!C2:E42,2,0) -> 33000 | E33: =VLOOKUP(E31,Werkstoffkenngrößen!C5:E42,2,0) -> 11000 | F33: =VLOOKUP(F31,Werkstoffkenngrößen!C5:E42,2,0) -> 12000 | I33: Kser [N/mm] | J33: =VLOOKUP($J$31,Verbindungsmittel!C5:D17,2,0) -> 15000 | K33: =VLOOKUP($K$31,Verbindungsmittel!C5:E17,3,0) -> 1514.017514 | N33: A3 | O33: =IF(K32>6,(F44-(K32*K36*K43)),F44) -> 0 | Q33: I3 | R33: =IF(AND(K32>6,D25="B"),((D44*((E44-(K43*K32))^3))/12),IF(K32>6,((D44-(K43*K32))*(E44^3))/12,G44)) -> 0
C34: Verhältnis E-Modul ni | D34: =D33/$E$33 -> 3 | E34: =E33/$E$33 -> 1 | F34: =F33/$E$33 -> 1.090909091 | I34: Verbindungsart | J34: Holz-Holz-Verbindung | K34: Holz-Holz-Verbindung
C35: Verhältnis Ai/Ai,netto [-] | D35: =F42/O31 -> 1 | E35: =F43/O32 -> 1 | F35: =F44/O33 ->  | I35: Länge VM [mm] | J35: 150 | K35: 0
C36: Verhältnis Iyi/Iyi,netto [-] | D36: =G42/R31 -> 1 | E36: =G43/R32 -> 1 | F36: =G44/R33 ->  | I36: Einbindetiefe in QS 2 | J36: =J35-E42 -> 90 | K36: =K35-E44 -> 0
C37: Kdef | D37: =IF(D30="Beton",2.5,IF(AND(D30="Vollholz",D22=Werkstoffkenngrößen!F6),VLOOKUP(D18,Kombinationsbeiwerte_Ψ!H3:J5,3,0)+1,IF(AND(D30="Sperrholz",D18=1),0.8,IF(AND(D30="Sperrholz",D18=2),1,IF(AND(D30="Sperrholz",D18=3),2.5,IF(AND(D30="Spanplatte P6",D18=1),2.25,IF(AND(D30="Spanplatte P6",D18=2),3,VLOOKUP(D18,Kombinationsbeiwerte_Ψ!H3:J5,3,0)))))))) -> 2.5 | E37: =IF(E30="Beton",2.5,IF(AND(E30="Vollholz",D22=Werkstoffkenngrößen!F6),VLOOKUP(D18,Kombinationsbeiwerte_Ψ!H3:J5,3,0)+1,IF(AND(E30="Sperrholz",D18=1),0.8,IF(AND(E30="Sperrholz",D18=2),1,IF(AND(E30="Sperrholz",D18=3),2.5,IF(AND(E30="Spanplatte P6",D18=1),2.25,IF(AND(E30="Spanplatte P6",D18=2),3,VLOOKUP(D18,Kombinationsbeiwerte_Ψ!H3:J5,3,0)))))))) -> 0.6 | F37: =IF(F30="Beton",2.5,IF(AND(F30="Vollholz",D22=Werkstoffkenngrößen!F6),VLOOKUP(D18,Kombinationsbeiwerte_Ψ!H3:J5,3,0)+1,IF(AND(F30="Sperrholz",D18=1),0.8,IF(AND(F30="Sperrholz",D18=2),1,IF(AND(F30="Sperrholz",D18=3),2.5,IF(AND(F30="Spanplatte P6",D18=1),2.25,IF(AND(F30="Spanplatte P6",D18=2),3,VLOOKUP(D18,Kombinationsbeiwerte_Ψ!H3:J5,3,0)))))))) -> 0.6 | H37: Wenn "Andere VM": | I37: Kser [N/mm] | J37: 15000 | K37: 0
C38: Kmod | D38: =IF(D30="Beton",1,IF(AND(D30="Spanplatte P6",D18=1),HLOOKUP(D20,'Modifikationsbeiwert Kmod '!D3:H8,5,0),IF(AND(D30="Spanplatte P6",D18=2),HLOOKUP(D20,'Modifikationsbeiwert Kmod '!D3:H8,6,0),IF(D18=1,HLOOKUP(D20,'Modifikationsbeiwert Kmod '!D3:H8,2,0),IF(D18=2,HLOOKUP(D20,'Modifikationsbeiwert Kmod '!D3:H8,3,0),HLOOKUP(D20,'Modifikationsbeiwert Kmod '!D3:H8,4,0)))))) -> 1 | E38: =IF(E30="Beton",1,IF(AND(E30="Spanplatte P6",D18=1),HLOOKUP(D20,'Modifikationsbeiwert Kmod '!D3:H8,5,0),IF(AND(E30="Spanplatte P6",D18=2),HLOOKUP(D20,'Modifikationsbeiwert Kmod '!D3:H8,6,0),IF(D18=1,HLOOKUP(D20,'Modifikationsbeiwert Kmod '!D3:H8,2,0),IF(D18=2,HLOOKUP(D20,'Modifikationsbeiwert Kmod '!D3:H8,3,0),HLOOKUP(D20,'Modifikationsbeiwert Kmod '!D3:H8,4,0)))))) -> 0.8 | F38: =IF(F30="Beton",1,IF(AND(F30="Spanplatte P6",D18=1),HLOOKUP(D20,'Modifikationsbeiwert Kmod '!D3:H8,5,0),IF(AND(F30="Spanplatte P6",D18=2),HLOOKUP(D20,'Modifikationsbeiwert Kmod '!D3:H8,6,0),IF(D18=1,HLOOKUP(D20,'Modifikationsbeiwert Kmod '!D3:H8,2,0),IF(D18=2,HLOOKUP(D20,'Modifikationsbeiwert Kmod '!D3:H8,3,0),HLOOKUP(D20,'Modifikationsbeiwert Kmod '!D3:H8,4,0)))))) -> 0.8 | I38: Bezeichnung der VM | J38: ASSY PLUS VG - Würth
C41: Querschnittsabmessungen | D41: Breite [mm] | E41: Höhe [mm] | F41: Ai [mm²] | G41: Iy [mm4] | I41: VM-Abstände | J41: VM-Abstand QS1/QS2 | K41: VM-Abstand QS2/QS3
C42: Querschnitt 1 | D42: 625 | E42: 60 | F42: =D42*E42 -> 37500 | G42: =(D42*E42^3)/12 -> 11250000 | I42: Kleinster Abstand [mm] | J42: 100 | L42: Smin
C43: Querschnitt 2 | D43: 120 | E43: 200 | F43: =D43*E43 -> 24000 | G43: =(D43*E43^3)/12 -> 80000000 | I43: Anzahl VM Reihen | J43: 1 | K43: 1
C44: Querschnitt 3 | D44: 0 | E44: 0 | F44: =D44*E44 -> 0 | G44: =(D44*E44^3)/12 -> 0 | I44: Größter Abstand [mm] | J44: 100 | L44: Smax
C45: Gesamtquerschnitt | D45: =IF(D25="B",(MAX(D42,D44)+D43),MAX(D42:D44)) -> 625 | E45: =IF(D25="B",E43,(E42+E43+E44)) -> 260 | F45: =F42+F43+F44 -> 61500
I46: wirksamer Abstand [mm] | J46: =0.75*(J42/J43)+0.25*(J44/J43) -> 100 | K46: =0.75*(K42/K43)+0.25*(K44/K43) -> 0
C49: Spannungen | M49: Verformungen
C52: Anfangszustand | H52: Endzustand | M52: Anfangszustand | R52: Endzustand
C54: E0,mean,1 [N/mm²] | D54: =D33 -> 33000 | H54: E0,mean,1 [N/mm²] | I54: =$D$33/(1+$D$21*$D$37) -> 18857.14286 | L54: =I54/I55 -> 2.022857143 | M54: E0,mean,1 [N/mm²] | N54: =D33 -> 33000 | R54: E0,mean,1 [N/mm²] | S54: =D33/(1+D37) -> 9428.571429
C55: E0,mean,2 [N/mm²] | D55: =$E$33 -> 11000 | H55: E0,mean,2 [N/mm²] | I55: =$E$33/(1+$D$21*$E$37) -> 9322.033898 | L55: =I55/I55 -> 1 | M55: E0,mean,2 [N/mm²] | N55: =$E$33 -> 11000 | R55: E0,mean,2 [N/mm²] | S55: =$E$33/(1+E37) -> 6875
C56: E0,mean,3 [N/mm²] | D56: =$F$33 -> 12000 | H56: E0,mean,3 [N/mm²] | I56: =$F$33/(1+$D$21*$F$37) -> 10169.49153 | L56: =I56/I55 -> 1.090909091 | M56: E0,mean,3 [N/mm²] | N56: =$F$33 -> 12000 | R56: E0,mean,3 [N/mm²] | S56: =$F$33/(1+F37) -> 7500
C57: K1 [Nmm] | D57: =IF($J$34 = "Holz-Holz-Verbindung",'Gamma-Verfahren_nach_DIN1052'!$J$33*2/3,'Gamma-Verfahren_nach_DIN1052'!$J$33*4/3) -> 10000 | H57: K1 [Nmm] | I57: =IF($J$34="Holz-Holz-Verbindung",(('Gamma-Verfahren_nach_DIN1052'!$J$33*2/3)/(1+D21*2*SQRT((D37*E37)))),(('Gamma-Verfahren_nach_DIN1052'!$J$33*4/3)/(1+D21*2*SQRT((D37*E37))))) -> 5764.19733 | M57: K1 [Nmm] | N57: =IF($J$34 = "Holz-Holz-Verbindung",'Gamma-Verfahren_nach_DIN1052'!$J$33,'Gamma-Verfahren_nach_DIN1052'!$J$33*2) -> 15000 | R57: K1 [Nmm] | S57: =IF($J$34="Holz-Holz-Verbindung",(('Gamma-Verfahren_nach_DIN1052'!$J$33)/(1+2*SQRT((D37*E37)))),(('Gamma-Verfahren_nach_DIN1052'!$J$33)/(1+2*SQRT((D37*E37))))) -> 4348.469228
C58: K3 [Nmm] | D58: =IF($K$34 = "Holz-Holz-Verbindung",'Gamma-Verfahren_nach_DIN1052'!$K$33*2/3,'Gamma-Verfahren_nach_DIN1052'!$K$33*4/3) -> 1009.345009 | H58: K3 [Nmm] | I58: =IF($K$34="Holz-Holz-Verbindung",(('Gamma-Verfahren_nach_DIN1052'!$K$33*2/3)/(1+D21*2*SQRT((F37*E37)))),(('Gamma-Verfahren_nach_DIN1052'!$K$33*4/3)/(1+D21*2*SQRT((F37*E37))))) -> 742.165448 | M58: K3 [Nmm] | N58: =IF($K$34 = "Holz-Holz-Verbindung",'Gamma-Verfahren_nach_DIN1052'!$K$33,'Gamma-Verfahren_nach_DIN1052'!$K$33*2) -> 1514.017514 | R58: K3 [Nmm] | S58: =IF($K$34="Holz-Holz-Verbindung",(('Gamma-Verfahren_nach_DIN1052'!$K$33)/(1+2*SQRT((F37*E37)))),(('Gamma-Verfahren_nach_DIN1052'!$K$33)/(1+2*SQRT((F37*E37))))) -> 688.1897791
C59: Verbindungsart | D59: =J34 -> Holz-Holz-Verbindung | H59: Verbindungsart | I59: =J34 -> Holz-Holz-Verbindung
C61: Abminderungsfaktor Gamma | M61: Abminderungsfaktor Gamma
C64: γ1 | D64: =1/(1+((3.14^2*$D$54*$F$42*$J$46)/($D$57*($D$14*1000)^2))) -> 0.2278300046 | H64: γ1 | I64: =1/(1+((3.14^2*$I$54*$F$42*$J$46)/($I$57*($D$14*1000)^2))) -> 0.2293635624 | M64: γ1 | N64: =1/(1+((3.14^2*$N$54*$F$42*$J$46)/($N$57*($D$14*1000)^2))) -> 0.3067963051 | R64: γ1 | S64: =1/(1+((3.14^2*$S$54*$F$42*$J$46)/($S$57*($D$14*1000)^2))) -> 0.3098965006
C65: γ2 | D65: 1 | H65: γ2 | I65: 1 | M65: γ2 | N65: 1 | R65: γ2 | S65: 1
C66: γ3 | D66: =IF(D26=3,(1/(1+((3.14^2*$D$56*$F$44*$K$46)/($D$58*($D$14*1000)^2)))),0) -> 0 | H66: γ3 | I66: =IF(D26=3,1/(1+((3.14^2*$I$56*$F$44*$K$46)/($I$58*($D$14*1000)^2))),0) -> 0 | M66: γ3 | N66: =IF(D26=3,(1/(1+((3.14^2*$N$56*$F$44*$K$46)/($N$58*($D$14*1000)^2)))),0) -> 0 | R66: γ3 | S66: =IF(D26=3,(1/(1+((3.14^2*$S$56*$F$44*$K$46)/($S$58*($D$14*1000)^2)))),0) -> 0
C68: Lage der Spannungsnulllinie
C71: a2 [mm] | D71: =IF(D25="B",(1/2*(($D$64*$D$54*$F$42*(-1*$E$42+$E$43)-$D$66*$D$56*$F$44*($E$43-$E$44))/($D$64*$F$42*$D$54+$D$65*$F$43*$D$55+$D$66*$F$44*$D$56))),(1/2*(($D$64*$D$54*$F$42*($E$42+$E$43)-$D$66*$F$44*$D$56*($E$43+$E$44))/($D$64*$F$42*$D$54+$D$65*$F$43*$D$55+$D$66*$F$44*$D$66)))) -> 67.13590649 | H71: a2 [mm] | I71: =IF(I37="B",(1/2*(($I$64*$F$42*$I$54*(-1*$E$42+$E$43)-$I$66*$I$56*$F$44*($E$43-$E$44))/($I$64*$I$56*$F$42+$I$65*$I$55*$F$43+$I$66*$I$56*$F$44))),(1/2*(($I$64*$I$54*$F$42*($E$42+$E$43)-$I$66*$I$56*$F$44*($E$43+$E$44))/($I$64*$F$42*$I$54+$I$65*$F$43*$I$55+$I$66*$F$44*$I$56)))) -> 54.63561413 | M71: a2 [mm] | N71: =IF(D25="B",(1/2*(($N$64*$F$42*$N$54*(-1*$E$42+$E$43)-$N$66*$F$44*$N$56*($E$43-$E$44))/($N$64*$F$42*$N$54+$N$65*$F$43*$N$55+$N$66*$F$44*$N$56))),(1/2*(($N$64*$F$42*$N$54*($E$42+$E$43)-$N$66*$F$44*$N$56*($E$43+$E$44))/($N$64*$F$42*$N$54+$N$65*$F$43*$N$55+$N$66*$F$44*$N$56)))) -> 76.67995961 | R71: a2 [mm] | S71: =IF(D25="B",(1/2*(($S$64*$F$42*$S$54*(-1*$E$42+$E$43)-$S$66*$F$44*$S$56*($E$43-$E$44))/($S$64*$F$42*$S$54+$S$65*$F$43*$S$55+$S$66*$F$44*$S$56))),(1/2*(($S$64*$F$42*$S$54*($E$42+$E$43)-$S$66*$F$44*$S$56*($E$43+$E$44))/($S$64*$F$42*$S$54+$S$65*$F$43*$S$55+$S$66*$F$44*$S$56)))) -> 51.8780014
C72: a1 [mm] | D72: =IF($D$25="B",(((-1*$E$42)+$E$43)/2)-$D$71,((($E$42)+$E$43)/2)-$D$71) -> 62.86409351 | H72: a1 [mm] | I72: =IF($D$25="B",(((-1*$E$42)+$E$43)/2)-$I$71,((($E$42)+$E$43)/2)-$I$71) -> 75.36438587 | M72: a1 [mm] | N72: =IF($D$25="B",(((-1*$E$42)+$E$43)/2)-$N$71,((($E$42)+$E$43)/2)-$N$71) -> 53.32004039 | R72: a1 [mm] | S72: =IF($D$25="B",(((-1*$E$42)+$E$43)/2)-$S$71,((($E$42)+$E$43)/2)-$S$71) -> 78.1219986
C73: a3 [mm] | D73: =IF(D26=3,IF($D$25="B",((($E$43-$E$44)/2)+$D$71),(($E$43+$E$44)/2)+$D$71),0) -> 0 | H73: a3 [mm] | I73: =IF(D26=3,IF($D$25="B",((($E$43-$E$44)/2)+$I$71),(($E$43+$E$44)/2)+$I$71),0) -> 0 | M73: a3 [mm] | N73: =IF(D26=3,IF($D$25="B",((($E$43-$E$44)/2)+$N$71),(($E$43+$E$44)/2)+$N$71),0) -> 0 | R73: a3 [mm] | S73: =IF(D26=3,IF($D$25="B",((($E$43-$E$44)/2)+$S$71),(($E$43+$E$44)/2)+$S$71),0) -> 0
C75: Effektive Biegesteifigkeit | M75: effektive Biegesteifigket
C78: Eief [Nmm²] | D78: =((D54*G42)+(D64*D54*F42*(D72^2)))+((D55*G43)+(D65*D55*F43*(D71^2)))+((D56*G44)+(D66*D56*F44*(D73^2))) -> 3.555354311e+12 | H78: Eief [Nmm²] | I78: =((I54*G42)+(I64*I54*F42*(I72^2)))+((I55*G43)+(I65*I55*F43*(I71^2)))+((I56*G44)+(I66*I56*F44*(I73^2))) -> 2.546968516e+12 | M78: Eief [Nmm²] | N78: =((N54*G42)+(N64*N54*F42*(N72^2)))+((N55*G43)+(N65*N55*F43*(N71^2)))+((N56*G44)+(N66*N56*F44*(N73^2))) -> 3.882906214e+12 | R78: Eief [Nmm²] | S78: =((S54*G42)+(S64*S54*F42*(S72^2)))+((S55*G43)+(S65*S55*F43*(S71^2)))+((S56*G44)+(S66*S56*F44*(S73^2))) -> 1.768854559e+12
C80: Schwerpunktsspannungen
M82: Gebrauchstauglichkeit / Durchbiegung
C83: s1,d [N/mm²] | D83: =(($G$10/$D$78)*$D$54) * $D$64*$D$72*$D$34 -> 9.691079531 | H83: s1,d [N/mm²] | I83: =(($G$10/$I$78)*$I$54) * $I$64*$I$72*$D$35 -> 3.109919719
C84: s2,d [N/mm²] | D84: =(($G$10/$D$78)*$D$55) * $D$65*$D$71*$E$35 -> 5.047437255 | H84: s2,d [N/mm²] | I84: =(($G$10/$I$78)*$I$55) * $I$65*$I$71*$E$35 -> 4.859249561 | O84: EI [N/mm] | P84: w [mm] | Q84: Abweichung
C85: s3,d [N/mm²] | D85: =(($G$10/$D$78)*$D$56) * $D$66*$D$73*$F$35 ->  | H85: s3,d [N/mm²] | I85: =(($G$10/$I$78)*$I$56) * $I$66*$I$73*$F$35 ->  | M85: Loser Verbund | O85: =((N54*G42)+(0*N54*F42*(N72^2)))+((N55*G43)+(0*N54*F43*(N71^2)))+((N56*G44)+(0*N56*F44*(N73^2))) -> 1251250000000 | P85: =IF(D12="Einfeldträger",((D9)*((D13*1000)^4))/(76.8*O85),IF(D12=Kragarm,((D9)*(D13*1000^3))/(6*O85))) -> 50.57442557 | Q85: =(100/$P$88)*P85 -> 505.2361262 | R85: =P88 -> 10.01005727
M86: Anfangszustand | O86: =N78 -> 3.882906214e+12 | P86: =IF(D12="Einfeldträger",(D9*((D13*1000)^4))/(76.8*O86),IF(D12=Kragarm,(D9*((D13*1000)^3))/(6*O86))) -> 16.29739337 | Q86: =(100/$P$88)*P86 -> 162.8101911 | R86: =P88 -> 10.01005727
C87: Randspannungen | M87: Endzustand | O87: =S78 -> 1.768854559e+12 | P87: =IF(D12="Einfeldträger",(D9*((D13*1000)^4))/(76.8*O87),IF(D12=Kragarm,(D9*((D13*1000)^3))/(6*O87))) -> 35.77527032 | Q87: =(100/$P$88)*P87 -> 357.3932632 | R87: =P88 -> 10.01005727
M88: Starrer Verbund | O88: =((N54*G42)+(1*N54*F42*(N72^2)))+((N55*G43)+(1*N55*F43*(N71^2)))+((N56*G44)+(1*N56*F44*(N73^2))) -> 6.321767029e+12 | P88: =IF(D12="Einfeldträger",(D9*((D13*1000)^4))/(76.8*O88),IF(D12=Kragarm,(D9*((D13*1000)^3))/(6*O88))) -> 10.01005727 | Q88: 100 | R88: =P88 -> 10.01005727
C90: sm,1,d [N/mm²] | D90: =(($G$10/$D$78)*$D$54) * ($E$42/2)*$D$36 -> 6.76641423 | H90: sm,1,d [N/mm²] | I90: =(($G$10/$I$78)*$I$54) * ($E$42/2)*$D$36 -> 5.397340822
C91: sm,2,d [N/mm²] | D91: =(($G$10/$D$78)*$D$55) * ($E$43/2)*$E$36 -> 7.518238033 | H91: sm,2,d [N/mm²] | I91: =(($G$10/$I$78)*$I$55) * ($E$43/2)*$E$36 -> 8.893923201
C92: sm,3,d [N/mm²] | D92: =(($G$10/$D$78)*$D$56) * ($E$44/2)*$F$36 ->  | H92: sm,3,d [N/mm²] | I92: =(($G$10/$I$78)*$I$56) * ($E$44/2)*$F$36 -> 
C94: Schnittgrößen in den Teilquerschnitten
C97: Ief [mm4] | D97: =(D34*G42+D64*D34*F42*(D72^2))+(G43+F43*(D71^2)) -> 323214028.2 | H97: Ief [mm4] | I97: =(L54*G42+I64*L54*F42*(I72^2))+(G43+F43*(I71^2)) -> 273220259
C99: N1 [KN] | D99: =((G10/D97)*D64*D72*D34*F42)/1000 -> 121.1384941 | H99: N1 [KN] | I99: =((G10/I97)*I64*I72*L54*F42)/1000 -> 116.6219895
C100: N2 [KN] | D100: =((G10/D97)*D65*D71*E34*F43)/1000 -> 121.1384941 | H100: N2 [KN] | I100: =((G10/I97)*I65*I71*L55*F43)/1000 -> 116.6219895
C102: M1 [KNm] | D102: =((G10/D97)*(E42/2)*D34*((D42*(E42^2))/6))/10^6 -> 2.537405336 | H102: M1 [KNm] | I102: =((G10/I97)*(E42/2)*L54*((D42*(E42^2))/6))/10^6 -> 2.024002808
C103: M2 [KNm] | D103: =((G10/D97)*(E43/2)*E34*((D43*(E43^2))/6))/10^6 -> 6.014590427 | H103: M2 [KNm] | I103: =((G10/I97)*(E43/2)*L55*((D43*(E43^2))/6))/10^6 -> 7.115138561
C105: Schubspannungen in neutraler Ebene des Querschnitts 2
C108: h [mm] | D108: =($E$43/2)+D71 -> 167.1359065 | H108: h [mm] | I108: =($E$43/2)+I71 -> 154.6356141
C110: τ2,max,d [N/mm²] | D110: =($G$11*(D66*D56*F44*D73+0.5*D55*D43*((D71+E43/2)^2)))/(D78*D43) -> 0.70005851 | H110: τ2,max,d [N/mm²] | I110: =($G$11*(I66*I56*F44*I73+0.5*I55*D43*((I71+E43/2)^2)))/(I78*D43) -> 0.7089101054
C111: τ1,max,d [N/mm²] | D111: =($G$11*D64*D54*F42*D72)/(D78*D42) -> 0.1292143937 | H111: τ1,max,d [N/mm²] | I111: =($G$11*I64*I54*F42*I72)/(I78*D42) -> 0.1243967888
C112: τ3,max,d [N/mm²] | D112: =($G$11*D66*D56*F44*D73)/(D78*D44) ->  | H112: τ3,max,d [N/mm²] | I112: =($G$11*I66*I56*F44*I73)/(I78*D44) -> 
C114: Bemessungswert der Scherkraft in den Anschlussfugen
C117: F1,v,Ed [N] | D117: =(($G$11 * D64 * D54 * F42 *D72 * J42)/(D78)) -> 8075.899609 | H117: F1,v,Ed [N] | I117: =(($G$11 * I64 * I54 * F42 *I72 * J42)/I78) -> 7774.799298
C118: F3,v,Ed [N] | D118: =(($G$11 * D66 * D56 * F44 *D73 * K42)/(D78)) -> 0 | H118: F3,v,Ed [N] | I118: =(($G$11 * I66 * I56 * F44 *I73 * K42)/(I78)) -> 0
C122: Bemessungswert der Festigkeit | D122: Breite [mm] | E122: Höhe [mm] | F122: ft,0,d [N/mm²] | G122: fm,d [N/mm²] | H122: fc,0,d [N/mm²]
C123: Querschnitt 1 | D123: =D42 -> 625 | E123: =E42 -> 60 | F123: =IF(AND($D$30="Vollholz",$D$32<=700,$E$42<150),VLOOKUP($D$31,Werkstoffkenngrößen!C5:J32,5,0)*($D$38/1.3)*MIN((150/$E$42)^0.2,1.3),VLOOKUP($D$31,Werkstoffkenngrößen!C5:J42,5,0)*($D$38/1.3)) -> 2.230769231 | G123: =IF(AND($D$30="Vollholz",$D$32<=700,$E$42<150),VLOOKUP($D$31,Werkstoffkenngrößen!C5:J32,7,0)*($D$38/1.3)*MIN((150/$E$42)^0.2,1.3),VLOOKUP($D$31,Werkstoffkenngrößen!C5:J42,7,0)*($D$38/1.3)) -> 29.23076923 | H123: =VLOOKUP($D$31,Werkstoffkenngrößen!C5:J42,6,0)*($D$38/1.3) -> 23.07692308
C124: Querschnitt 2 | D124: =D43 -> 120 | E124: 200 | F124: =IF(AND($E$30="Vollholz",$E$32<=700,$E$43<150),VLOOKUP($E$31,Werkstoffkenngrößen!C5:J32,5,0)*($E$38/1.3)*MIN((150/$E$43)^0.2,1.3),VLOOKUP($E$31,Werkstoffkenngrößen!C5:J42,5,0)*($E$38/1.3)) -> 8.923076923 | G124: =IF(AND($E$30="Vollholz",$E$32<=700,$E$43<150),VLOOKUP($E$31,Werkstoffkenngrößen!C5:J32,7,0)*($E$38/1.3)*MIN((150/$E$43)^0.2,1.3),VLOOKUP($E$31,Werkstoffkenngrößen!C5:J42,7,0)*($E$38/1.3)) -> 14.76923077 | H124: =VLOOKUP($E$31,Werkstoffkenngrößen!C6:J42,6,0)*($E$38/1.3) -> 12.92307692
C125: Querschnitt 3 | D125: =D44 -> 0 | E125: 0 | F125: =IF(AND($F$30="Vollholz",$F$32<=700,$E$44<150),VLOOKUP($F$31,Werkstoffkenngrößen!C5:J32,5,0)*($F$38/1.3)*MIN((150/$E$44)^0.2,1.3),VLOOKUP($F$31,Werkstoffkenngrößen!C5:J42,5,0)*($F$38/1.3)) ->  | G125: =IF(AND($F$30="Vollholz",$F$32<=700,$E$44<150),VLOOKUP($F$31,Werkstoffkenngrößen!C5:J32,7,0)*($F$38/1.3)*MIN((150/$E$44)^0.2,1.3),VLOOKUP($F$31,Werkstoffkenngrößen!C5:J42,7,0)*($F$38/1.3)) ->  | H125: =VLOOKUP($F$31,Werkstoffkenngrößen!C7:J42,6,0)*($F$38/1.3) -> 14.76923077 | I125: =VLOOKUP($F$31,Werkstoffkenngrößen!F7:M28,5,0)*($F$38/1.3) -> 
C128: Querschnittsnachweise
C131: Tragfähigkeitsnachweise für Querschnitte und Verbindungsmittel
C133: Schwerpunktsspannungen
C136: s1,d [N/mm²] | D136: =(($G$10/$D$78)*$D$54) * $D$64*$D$72*$D$34 -> 9.691079531 | H136: s1,d [N/mm²] | I136: =(($G$10/$I$78)*$I$54) * $I$64*$I$72*$D$35 -> 3.109919719
C137: s2,d [N/mm²] | D137: =(($G$10/$D$78)*$D$55) * $D$65*$D$71*$E$35 -> 5.047437255 | H137: s2,d [N/mm²] | I137: =(($G$10/$I$78)*$I$55) * $I$65*$I$71*$E$35 -> 4.859249561
C138: s3,d [N/mm²] | D138: =(($G$10/$D$78)*$D$56) * $D$66*$D$73*$F$35 ->  | H138: s3,d [N/mm²] | I138: =(($G$10/$I$78)*$I$56) * $I$66*$I$73*$F$35 -> 
C140: Randspannungen
C143: sm,1,d [N/mm²] | D143: =(($G$10/$D$78)*$D$54) * ($E$42/2)*$D$36 -> 6.76641423 | H143: sm,1,d [N/mm²] | I143: =(($G$10/$I$78)*$I$54) * ($E$42/2)*$D$36 -> 5.397340822
C144: sm,2,d [N/mm²] | D144: =(($G$10/$D$78)*$D$55) * ($E$43/2)*$E$36 -> 7.518238033 | H144: sm,2,d [N/mm²] | I144: =(($G$10/$I$78)*$I$55) * ($E$43/2)*$E$36 -> 8.893923201
C145: sm,3,d [N/mm²] | D145: =(($G$10/$D$78)*$D$56) * ($E$44/2)*$F$36 ->  | H145: sm,3,d [N/mm²] | I145: =(($G$10/$I$78)*$I$56) * ($E$44/2)*$F$36 -> 
C147: Verbindungsmittelbeanspruchung
C150: F1,v,Ed | D150: =((D11*10^3)*D64*D54*F42*D72*J42)/D78 -> 8075.899609 | H150: F1,v,Ed | I150: =((D11*10^3)*I64*I54*F42*I72*J42)/I78 -> 7774.799298
C151: F3,v,Ed | D151: =((D11*10^3)*D66*D56*F44*D73*K42)/D78 -> 0 | H151: F3,v,Ed | I151: =((D11*10^3)*I66*I56*F44*I73*K42)/I78 -> 0
C153: Nachweise der Querschnitte
C155: Tragfähigkeitsnachweis der Teilquerschnitte
C158: Querschnitt 1 (Druck und Biegung) | D158: =(D136/H123)^2 + D143/G123 -> 0.4078378898 | F158: ≤ 1,00 | H158: Querschnitt 1 (Druck und Biegung) | I158: =(I136/H123)^2 + I143/G123 -> 0.202806987 | K158: ≤ 1,00
C159: Querschnitt 2 (Zug und Biegung) | D159: =(D137/F124)^2 + D144/G124 -> 0.8290198149 | F159: ≤ 1,00 | H159: Querschnitt 2 (Zug und Biegung) | I159: =(I137/F124)^2 + I144/G124 -> 0.8987503686 | K159: ≤ 1,00
C160: Querschnitt 3 (Zug und Biegung) | D160: =(D138/F125)^2 + D145/G125 ->  | F160: ≤ 1,00 | H160: Querschnitt 3 (Zug und Biegung) | I160: =(I138/F125)^2 + I145/G125 ->  | K160: ≤ 1,00

Sheet Weitere Verfahren
K3: EV
B4: Schubanalogieverfahren nach Kreuzinger | K4: 30000
A7: GZT | B7: Ebene A: | D7: Anfangszustand | F7: Endzustand
C8: BA | D8: ='Gamma-Verfahren_nach_DIN1052'!D33*'Gamma-Verfahren_nach_DIN1052'!G42+'Gamma-Verfahren_nach_DIN1052'!E33*'Gamma-Verfahren_nach_DIN1052'!G43+'Gamma-Verfahren_nach_DIN1052'!G33*'Gamma-Verfahren_nach_DIN1052'!G44 -> 1251250000000 | F8: ='Gamma-Verfahren_nach_DIN1052'!I54*'Gamma-Verfahren_nach_DIN1052'!G42+'Gamma-Verfahren_nach_DIN1052'!I55*'Gamma-Verfahren_nach_DIN1052'!G43+'Gamma-Verfahren_nach_DIN1052'!I56*'Gamma-Verfahren_nach_DIN1052'!G44 -> 9.57905569e+11 | H8: [N/mm²]
D9: =D8/10^9 -> 1251.25 | F9: =F8/10^9 -> 957.905569 | H9: [KN/m²]
C11: aA | D11: =(((D8*12)/K4)^(1/4))/10 -> 14.95722478 | F11: =(((F8*12)/K4)^(1/4))/10 -> 13.99090064 | H11: [cm]
C13: SA | D13: ∞ | F13: ∞
A16: GZG | B16: Ebene A: | D16: Anfangszustand | F16: Endzustand
C17: BA | D17: ='Gamma-Verfahren_nach_DIN1052'!D33*'Gamma-Verfahren_nach_DIN1052'!G42+'Gamma-Verfahren_nach_DIN1052'!E33*'Gamma-Verfahren_nach_DIN1052'!G43+'Gamma-Verfahren_nach_DIN1052'!G33*'Gamma-Verfahren_nach_DIN1052'!G44 -> 1251250000000 | F17: ='Gamma-Verfahren_nach_DIN1052'!S54*'Gamma-Verfahren_nach_DIN1052'!G42+'Gamma-Verfahren_nach_DIN1052'!S55*'Gamma-Verfahren_nach_DIN1052'!G43+'Gamma-Verfahren_nach_DIN1052'!I56*'Gamma-Verfahren_nach_DIN1052'!G44 -> 6.560714286e+11 | H17: [N/mm²]
D18: =D17/10^9 -> 1251.25 | F18: =F17/10^9 -> 656.0714286 | H18: [KN/m²]
C20: aA | D20: =(((D17*12)/K4)^(1/4))/10 -> 14.95722478 | F20: =(((F17*12)/K4)^(1/4))/10 -> 12.72778349 | H20: [cm]
C22: SA | D22: ∞ | F22: ∞
A25: GZT | B25: Ebene B: | D25: Anfangszustand | F25: Endzustand
C26: BB | D26: =IF('Gamma-Verfahren_nach_DIN1052'!D26=3,Massenschwerpunkt!C26^2*(('Gamma-Verfahren_nach_DIN1052'!D33*'Gamma-Verfahren_nach_DIN1052'!F42*'Gamma-Verfahren_nach_DIN1052'!E33*'Gamma-Verfahren_nach_DIN1052'!F43*'Gamma-Verfahren_nach_DIN1052'!F33*'Gamma-Verfahren_nach_DIN1052'!F44)/('Gamma-Verfahren_nach_DIN1052'!D33*'Gamma-Verfahren_nach_DIN1052'!F42+'Gamma-Verfahren_nach_DIN1052'!E33*'Gamma-Verfahren_nach_DIN1052'!F43+'Gamma-Verfahren_nach_DIN1052'!F33*'Gamma-Verfahren_nach_DIN1052'!F44)),Massenschwerpunkt!C26^2*(('Gamma-Verfahren_nach_DIN1052'!D33*'Gamma-Verfahren_nach_DIN1052'!F42*'Gamma-Verfahren_nach_DIN1052'!E33*'Gamma-Verfahren_nach_DIN1052'!F43)/('Gamma-Verfahren_nach_DIN1052'!D33*'Gamma-Verfahren_nach_DIN1052'!F42+'Gamma-Verfahren_nach_DIN1052'!E33*'Gamma-Verfahren_nach_DIN1052'!F43))) -> 3.677142857e+12 | F26: =IF('Gamma-Verfahren_nach_DIN1052'!D26=3,Massenschwerpunkt!C26^2*(('Gamma-Verfahren_nach_DIN1052'!I54*'Gamma-Verfahren_nach_DIN1052'!F42*'Gamma-Verfahren_nach_DIN1052'!I55*'Gamma-Verfahren_nach_DIN1052'!F43*'Gamma-Verfahren_nach_DIN1052'!I56*'Gamma-Verfahren_nach_DIN1052'!F44)/('Gamma-Verfahren_nach_DIN1052'!I54*'Gamma-Verfahren_nach_DIN1052'!F42+'Gamma-Verfahren_nach_DIN1052'!I55*'Gamma-Verfahren_nach_DIN1052'!F43+'Gamma-Verfahren_nach_DIN1052'!I56*'Gamma-Verfahren_nach_DIN1052'!F44)),Massenschwerpunkt!C26^2*(('Gamma-Verfahren_nach_DIN1052'!I54*'Gamma-Verfahren_nach_DIN1052'!F42*'Gamma-Verfahren_nach_DIN1052'!I55*'Gamma-Verfahren_nach_DIN1052'!F43)/('Gamma-Verfahren_nach_DIN1052'!I54*'Gamma-Verfahren_nach_DIN1052'!F42+'Gamma-Verfahren_nach_DIN1052'!I55*'Gamma-Verfahren_nach_DIN1052'!F43))) -> 2.872274678e+12 | H26: [N/mm²]
D27: =D26/10^9 -> 3677.142857 | F27: =F26/10^9 -> 2872.274678 | H27: [KN/m²]
C29: aB | D29: =(((D26*12)/K4)^(1/4))/10 -> 19.58360422 | F29: =(((F26*12)/K4)^(1/4))/10 -> 18.4107504 | H29: [cm]
L30: AZ | M30: EZ
C31: Ct | D31: =L32/('Gamma-Verfahren_nach_DIN1052'!J46/10) -> 10 | F31: =M32/('Gamma-Verfahren_nach_DIN1052'!J46/10) -> 6.666666667 | H31: [KN] | K31: Kser | L31: =('Gamma-Verfahren_nach_DIN1052'!J33)/100 -> 150 | M31: =L31*2/3 -> 100 | N31: [KN/cm]
C32: Gt | D32: =(D31*(Massenschwerpunkt!C26/10)^2)/('Weitere Verfahren'!D29^2) -> 4.406577957 | F32: =(F31*(Massenschwerpunkt!C26/10)^2)/('Weitere Verfahren'!F29^2) -> 3.323934561 | H32: [KN/cm²] | K32: Kser,d | L32: =L31*2/3 -> 100 | M32: =M31*2/3 -> 66.66666667 | N32: [KN/cm] | O32: (GZT)
K33: Kser,k | L33: =L31 -> 150 | M33: =L31/(1+2*SQRT('Gamma-Verfahren_nach_DIN1052'!D37*'Gamma-Verfahren_nach_DIN1052'!E37)) -> 43.48469228 | N33: [KN/cm] | O33: (GZG)
C34: SB | D34: =D32*(D29)^2 -> 1690 | F34: =F32*(F29)^2 -> 1126.666667 | H34: [KN]
A37: GZG | B37: Ebene B: | D37: Anfangszustand | F37: Endzustand
C38: BB | D38: =IF('Gamma-Verfahren_nach_DIN1052'!D26=3,Massenschwerpunkt!C26^2*(('Gamma-Verfahren_nach_DIN1052'!D33*'Gamma-Verfahren_nach_DIN1052'!F42*'Gamma-Verfahren_nach_DIN1052'!E33*'Gamma-Verfahren_nach_DIN1052'!F43*'Gamma-Verfahren_nach_DIN1052'!F33*'Gamma-Verfahren_nach_DIN1052'!F44)/('Gamma-Verfahren_nach_DIN1052'!D33*'Gamma-Verfahren_nach_DIN1052'!F42+'Gamma-Verfahren_nach_DIN1052'!E33*'Gamma-Verfahren_nach_DIN1052'!F43+'Gamma-Verfahren_nach_DIN1052'!F33*'Gamma-Verfahren_nach_DIN1052'!F44)),Massenschwerpunkt!C26^2*(('Gamma-Verfahren_nach_DIN1052'!D33*'Gamma-Verfahren_nach_DIN1052'!F42*'Gamma-Verfahren_nach_DIN1052'!E33*'Gamma-Verfahren_nach_DIN1052'!F43)/('Gamma-Verfahren_nach_DIN1052'!D33*'Gamma-Verfahren_nach_DIN1052'!F42+'Gamma-Verfahren_nach_DIN1052'!E33*'Gamma-Verfahren_nach_DIN1052'!F43))) -> 3.677142857e+12 | F38: =IF('Gamma-Verfahren_nach_DIN1052'!D26=3,Massenschwerpunkt!C26^2*(('Gamma-Verfahren_nach_DIN1052'!S54*'Gamma-Verfahren_nach_DIN1052'!F42*'Gamma-Verfahren_nach_DIN1052'!S55*'Gamma-Verfahren_nach_DIN1052'!F43*'Gamma-Verfahren_nach_DIN1052'!S56*'Gamma-Verfahren_nach_DIN1052'!F44)/('Gamma-Verfahren_nach_DIN1052'!S54*'Gamma-Verfahren_nach_DIN1052'!F42+'Gamma-Verfahren_nach_DIN1052'!S55*'Gamma-Verfahren_nach_DIN1052'!F43+'Gamma-Verfahren_nach_DIN1052'!S56*'Gamma-Verfahren_nach_DIN1052'!F44)),Massenschwerpunkt!C26^2*(('Gamma-Verfahren_nach_DIN1052'!S54*'Gamma-Verfahren_nach_DIN1052'!F42*'Gamma-Verfahren_nach_DIN1052'!S55*'Gamma-Verfahren_nach_DIN1052'!F43)/('Gamma-Verfahren_nach_DIN1052'!S54*'Gamma-Verfahren_nach_DIN1052'!F42+'Gamma-Verfahren_nach_DIN1052'!S55*'Gamma-Verfahren_nach_DIN1052'!F43))) -> 1901250000000 | H38: [N/mm²]
D39: =D38/10^9 -> 3677.142857 | F39: =F38/10^9 -> 1901.25 | H39: [KN/m²]
C41: aB | D41: =(((D38*12)/K4)^(1/4))/10 -> 19.58360422 | F41: =(((F38*12)/K4)^(1/4))/10 -> 16.60637362 | H41: [cm]
C43: Ct | D43: =L33/('Gamma-Verfahren_nach_DIN1052'!J46/10) -> 15 | F43: =M33/('Gamma-Verfahren_nach_DIN1052'!J46/10) -> 4.348469228 | H43: [KN]
C44: Gt | D44: =(D43*(Massenschwerpunkt!C26/10)^2)/('Weitere Verfahren'!D41^2) -> 6.609866936 | F44: =(F43*(Massenschwerpunkt!C26/10)^2)/('Weitere Verfahren'!F41^2) -> 2.664854469 | H44: [KN/cm²]
C46: SB | D46: =D44*(D41)^2 -> 2535 | F46: =F44*(F41)^2 -> 734.8912996 | H46: [KN]
B48: Stabwerkmodelle nach Rautenstrauch
B51: Ohne Berücksichtigung der Gurtsteifigkeit:
D53: Anfangszustand | F53: Endzustand
B55: GZT | C55: EI* | D55: =('Gamma-Verfahren_nach_DIN1052'!D57/3)*(Massenschwerpunkt!F26^3+Massenschwerpunkt!F27^3) -> 3423333333 | F55: =('Gamma-Verfahren_nach_DIN1052'!I57/3)*(Massenschwerpunkt!F26^3+Massenschwerpunkt!F27^3) -> 1973276886 | H55: [N/mm²]
D56: =D55/10^9 -> 3.423333333 | F56: =F55/10^9 -> 1.973276886 | H56: [KN/m²]
B58: GZG | C58: EI* | D58: =('Gamma-Verfahren_nach_DIN1052'!N57/3)*(Massenschwerpunkt!F26^3+Massenschwerpunkt!F27^3) -> 5135000000 | F58: =('Gamma-Verfahren_nach_DIN1052'!S57/3)*(Massenschwerpunkt!F26^3+Massenschwerpunkt!F27^3) -> 1488625966 | H58: [N/mm²]
D59: =D58/10^9 -> 5.135 | F59: =F58/10^9 -> 1.488625966 | H59: [KN/m²]
B61: Mit Berücksichtigung der Gurtsteifigkeit:
D63: Anfangszustand | F63: Endzustand
B65: GZT | C65: EI* | D65: =(Massenschwerpunkt!F26^3+Massenschwerpunkt!F27^3)/((3/'Gamma-Verfahren_nach_DIN1052'!D57)-(('Weitere Verfahren'!D74^3+'Weitere Verfahren'!D75^3)/(2*('Weitere Verfahren'!D74+'Weitere Verfahren'!D75)^2)*((Massenschwerpunkt!F26^2/('Gamma-Verfahren_nach_DIN1052'!D54*'Gamma-Verfahren_nach_DIN1052'!G42))+(Massenschwerpunkt!F27^2/('Gamma-Verfahren_nach_DIN1052'!D55*'Gamma-Verfahren_nach_DIN1052'!G43))))) -> 3427271233 | F65: =(Massenschwerpunkt!F26^3+Massenschwerpunkt!F27^3)/((3/'Gamma-Verfahren_nach_DIN1052'!I57)-(('Weitere Verfahren'!D74^3+'Weitere Verfahren'!D75^3)/(2*('Weitere Verfahren'!D74+'Weitere Verfahren'!D75)^2)*((Massenschwerpunkt!F26^2/('Gamma-Verfahren_nach_DIN1052'!I54*'Gamma-Verfahren_nach_DIN1052'!G42))+(Massenschwerpunkt!F27^2/('Gamma-Verfahren_nach_DIN1052'!I55*'Gamma-Verfahren_nach_DIN1052'!G43))))) -> 1974951428 | H65: [N/mm²]
D66: =D65/10^9 -> 3.427271233 | F66: =F65/10^9 -> 1.974951428 | H66: [KN/m²]
B69: GZG | C69: EI* | D69: =(Massenschwerpunkt!F26^3+Massenschwerpunkt!F27^3)/((3/'Gamma-Verfahren_nach_DIN1052'!N57)-(('Weitere Verfahren'!D74^3+'Weitere Verfahren'!D75^3)/(2*('Weitere Verfahren'!D74+'Weitere Verfahren'!D75)^2)*((Massenschwerpunkt!F26^2/('Gamma-Verfahren_nach_DIN1052'!N54*'Gamma-Verfahren_nach_DIN1052'!G42))+(Massenschwerpunkt!F27^2/('Gamma-Verfahren_nach_DIN1052'!N55*'Gamma-Verfahren_nach_DIN1052'!G43))))) -> 5143865374 | F69: =(Massenschwerpunkt!F26^3+Massenschwerpunkt!F27^3)/((3/'Gamma-Verfahren_nach_DIN1052'!S57)-(('Weitere Verfahren'!D74^3+'Weitere Verfahren'!D75^3)/(2*('Weitere Verfahren'!D74+'Weitere Verfahren'!D75)^2)*((Massenschwerpunkt!F26^2/('Gamma-Verfahren_nach_DIN1052'!S54*'Gamma-Verfahren_nach_DIN1052'!G42))+(Massenschwerpunkt!F27^2/('Gamma-Verfahren_nach_DIN1052'!S55*'Gamma-Verfahren_nach_DIN1052'!G43))))) -> 1490065856 | H69: [N/mm²]
D70: =D69/10^9 -> 5.143865374 | F70: =F69/10^9 -> 1.490065856 | H70: [KN/m²]
A74: * | B74: eff.Abstand zum linkem VM: | D74: 100 | E74: mm | G74: Hinweis:
A75: * | B75: eff. Abstand zum rechten VM: | D75: 100 | E75: mm | G75: Wenn VM-Abstand gleich | I75: ='Gamma-Verfahren_nach_DIN1052'!J42/'Gamma-Verfahren_nach_DIN1052'!J43 -> 100 | J75: einsetzen
B78: *eff. = effektiver VM Abstand = Abstand durch Anzahl der Reihen
B82: Federmodelle
B85: !!!BEI WECHSELNDEM VM ABSTAND SIND DIE FEDERSTEIFIGKEITEN GETRENNT ZU ERMITTELN UND ZU MODELLIEREN!!!
B87: Schubfuge 1
D90: Anfangszustand | F90: Endzustand
B92: GZT | C92: KFeder | D92: ='Gamma-Verfahren_nach_DIN1052'!J43*'Gamma-Verfahren_nach_DIN1052'!D57 -> 10000 | F92: ='Gamma-Verfahren_nach_DIN1052'!J43*'Gamma-Verfahren_nach_DIN1052'!I57 -> 5764.19733 | H92: [N/mm]
B93: GZG | C93: KFeder | D93: ='Gamma-Verfahren_nach_DIN1052'!J43*'Gamma-Verfahren_nach_DIN1052'!N57 -> 15000 | F93: ='Gamma-Verfahren_nach_DIN1052'!J43*'Gamma-Verfahren_nach_DIN1052'!S57 -> 4348.469228 | H93: [N/mm]
B95: Schubfuge 2
D98: Anfangszustand | F98: Endzustand
B100: GZT | C100: KFeder | D100: ='Gamma-Verfahren_nach_DIN1052'!K43*'Gamma-Verfahren_nach_DIN1052'!D58 -> 1009.345009 | F100: ='Gamma-Verfahren_nach_DIN1052'!K43*'Gamma-Verfahren_nach_DIN1052'!I58 -> 742.165448 | H100: [N/mm]
B101: GZG | C101: KFeder | D101: ='Gamma-Verfahren_nach_DIN1052'!K43*'Gamma-Verfahren_nach_DIN1052'!N58 -> 1514.017514 | F101: ='Gamma-Verfahren_nach_DIN1052'!K43*'Gamma-Verfahren_nach_DIN1052'!S58 -> 688.1897791 | H101: [N/mm]
B105: Modellierungshilfe:
B107: Abstand der Bauteil-Schwerachsen: | E107: a | F107: =Massenschwerpunkt!C26 -> 130 | H107: [mm]
B108: Abstand der Verbindungsmittel: | E108: si | F108: ='Gamma-Verfahren_nach_DIN1052'!J42 -> 100 | H108: [mm]
B109: Abstand Schwerachse 1 zu Feder: | E109: a1 | F109: =Massenschwerpunkt!F26 -> 30 | H109: [mm]
B110: Abstand Schwerachse 2 zu Feder: | E110: a2 | F110: =Massenschwerpunkt!F27 -> 100 | H110: [mm]

Sheet Massenschwerpunkt (hidden)
B3: Massenschwerpunkt des Gesamtquerschnittes
B6: Schwerpunktkoordinaten | C6: Querschnitt 1 | D6: m1 | E6: Querschnitt 2 | F6: m2 | G6: Querschnitt 3 | H6: m3 | I6: Verbundquerschnitt
B7: X | C7: 0 | E7: 0 | G7: 0 | I7: =(C7*$D$8+E7*$F$8+G7*$H$8)/($D$8+$F$8+$H$8) -> 0
B8: Y | C8: ='Gamma-Verfahren_nach_DIN1052'!D45/2 -> 312.5 | D8: =C11*'Gamma-Verfahren_nach_DIN1052'!F42/10^6 -> 93.75 | E8: ='Gamma-Verfahren_nach_DIN1052'!D45/2 -> 312.5 | F8: =E11*'Gamma-Verfahren_nach_DIN1052'!F43/10^6 -> 8.4 | G8: ='Gamma-Verfahren_nach_DIN1052'!D45/2 -> 312.5 | H8: =G11*'Gamma-Verfahren_nach_DIN1052'!F44/10^6 -> 0 | I8: =(C8*$D$8+E8*$F$8+G8*$H$8)/($D$8+$F$8+$H$8) -> 312.5
B9: Z | C9: ='Gamma-Verfahren_nach_DIN1052'!E42/2 -> 30 | E9: =IF('Gamma-Verfahren_nach_DIN1052'!D25="B",'Gamma-Verfahren_nach_DIN1052'!E43/2,'Gamma-Verfahren_nach_DIN1052'!E42+'Gamma-Verfahren_nach_DIN1052'!E43/2) -> 160 | G9: =IF('Gamma-Verfahren_nach_DIN1052'!D25="B",'Gamma-Verfahren_nach_DIN1052'!E43-'Gamma-Verfahren_nach_DIN1052'!E44/2,'Gamma-Verfahren_nach_DIN1052'!E42+'Gamma-Verfahren_nach_DIN1052'!E43+'Gamma-Verfahren_nach_DIN1052'!E44/2) -> 260 | I9: =(C9*$D$8+E9*$F$8+G9*$H$8)/($D$8+$F$8+$H$8) -> 40.69016153
B11: Masse [Kg/m³] | C11: ='Gamma-Verfahren_nach_DIN1052'!D32 -> 2500 | E11: ='Gamma-Verfahren_nach_DIN1052'!E32 -> 350 | G11: ='Gamma-Verfahren_nach_DIN1052'!F32 -> 380
B13: Schwerpunktabstände | C13: Querschnitt 1 | D13: m1 | E13: Querschnitt 2 | F13: m2 | G13: Querschnitt 3 | H13: m3 | I13: Verbundquerschnitt | J13: Kontrolle
B14: X | C14: =I7-C7 -> 0 | E14: =I7-E7 -> 0 | G14: =I7-G7 -> 0 | I14: =C14*D15+E14*F15+G14*H15 -> 0 | J14: =I14 -> 0
B15: Y | C15: =I8-C8 -> 0 | D15: =D8 -> 93.75 | E15: =I8-E8 -> 0 | F15: =F8 -> 8.4 | G15: =I8-G8 -> 0 | H15: =G18*'Gamma-Verfahren_nach_DIN1052'!F51/10^6 -> 0 | I15: =C15*D15+E15*F15+G15*H15 -> 0 | J15: =I15 -> 0
B16: Z | C16: =I9-C9 -> 10.69016153 | E16: =I9-E9 -> -119.3098385 | G16: =I9-G9 -> -219.3098385 | I16: =C16*D15+E16*F15+G16*H15 -> -5.684341886e-13 | J16: =I16 -> -5.684341886e-13
B25: Abstand Schwerpunkte | E25: Abstand QS zur Fuge
B26: a1-2 | C26: =Massenschwerpunkt!E9-Massenschwerpunkt!C9 -> 130 | E26: ZB | F26: ='Gamma-Verfahren_nach_DIN1052'!E42-Massenschwerpunkt!C9 -> 30
B27: a2-3 | C27: =G9-E9 -> 100 | E27: ZH | F27: =C26-F26 -> 100

Sheet Verbindungsmittel (hidden)
C4: Verbindungsmittel | D4: Kser (QS1/2) [Nmm] | E4: Kser (QS2/3) [Nmm] | F4: K1/3 (Holz-Holz) | G4: K1/3 (Holz-Stahl)
C5: Stabdübel | D5: =(('Gamma-Verfahren_nach_DIN1052'!G32)^1.5)*(('Gamma-Verfahren_nach_DIN1052'!J32))/23 -> 7463.275167 | E5: =(('Gamma-Verfahren_nach_DIN1052'!H32)^1.5)*(('Gamma-Verfahren_nach_DIN1052'!K32))/23 -> 1514.017514 | F5: =2/3*D5 -> 4975.516778 | G5: =2*F5 -> 9951.033556
C6: Passbolzen | D6: =(('Gamma-Verfahren_nach_DIN1052'!G32)^1.5)*(('Gamma-Verfahren_nach_DIN1052'!J32))/23 -> 7463.275167 | E6: =(('Gamma-Verfahren_nach_DIN1052'!H32)^1.5)*(('Gamma-Verfahren_nach_DIN1052'!K32))/23 -> 1514.017514 | F6: =2/3*D5 -> 4975.516778 | G6: =2*F5 -> 9951.033556
C7: Bolzen | D7: =(('Gamma-Verfahren_nach_DIN1052'!G32)^1.5)*(('Gamma-Verfahren_nach_DIN1052'!J32))/23 -> 7463.275167 | E7: =(('Gamma-Verfahren_nach_DIN1052'!H32)^1.5)*(('Gamma-Verfahren_nach_DIN1052'!K32))/23 -> 1514.017514 | F7: =2/3*D5 -> 4975.516778 | G7: =2*F5 -> 9951.033556
C8: Gewindestangen | D8: =(('Gamma-Verfahren_nach_DIN1052'!G32)^1.5)*(('Gamma-Verfahren_nach_DIN1052'!J32))/23 -> 7463.275167 | E8: =(('Gamma-Verfahren_nach_DIN1052'!H32)^1.5)*(('Gamma-Verfahren_nach_DIN1052'!K32))/23 -> 1514.017514 | F8: =2/3*D5 -> 4975.516778 | G8: =2*F5 -> 9951.033556
C9: Schrauben (vorgebohrt) | D9: =(('Gamma-Verfahren_nach_DIN1052'!G32)^1.5)*(('Gamma-Verfahren_nach_DIN1052'!J32))/23 -> 7463.275167 | E9: =(('Gamma-Verfahren_nach_DIN1052'!H32)^1.5)*(('Gamma-Verfahren_nach_DIN1052'!K32))/23 -> 1514.017514 | F9: =2/3*D5 -> 4975.516778 | G9: =2*F5 -> 9951.033556
C10: Nägel (vorgebohrt) | D10: =(('Gamma-Verfahren_nach_DIN1052'!G32)^1.5)*(('Gamma-Verfahren_nach_DIN1052'!J32))/23 -> 7463.275167 | E10: =(('Gamma-Verfahren_nach_DIN1052'!H32)^1.5)*(('Gamma-Verfahren_nach_DIN1052'!K32))/23 -> 1514.017514 | F10: =2/3*D5 -> 4975.516778 | G10: =2*F5 -> 9951.033556
C11: Nägel (nicht vorgebohrt) | D11: =(('Gamma-Verfahren_nach_DIN1052'!G32)^1.5)*(('Gamma-Verfahren_nach_DIN1052'!J32)^0.8)/30 -> 3998.579963 | E11: =(('Gamma-Verfahren_nach_DIN1052'!H32)^1.5)*(('Gamma-Verfahren_nach_DIN1052'!K32)^0.8)/30 -> 841.2856468 | F11: =2/3*D11 -> 2665.719975 | G11: =2*F11 -> 5331.43995
C12: Klammern | D12: =(('Gamma-Verfahren_nach_DIN1052'!G32)^1.5)*(('Gamma-Verfahren_nach_DIN1052'!J32)^0.8)/80 -> 1499.467486 | E12: =(('Gamma-Verfahren_nach_DIN1052'!H32)^1.5)*(('Gamma-Verfahren_nach_DIN1052'!K32)^0.8)/80 -> 315.4821176 | F12: 999.6449907 | G12: 1999.289981
C13: Ringdübel Typ A | D13: =(('Gamma-Verfahren_nach_DIN1052'!G32))*(('Gamma-Verfahren_nach_DIN1052'!J32))/2 -> 2806.24304 | E13: =(('Gamma-Verfahren_nach_DIN1052'!H32))*(('Gamma-Verfahren_nach_DIN1052'!K32))/2 -> 911.7291264 | F13: 1870.828693 | G13: 3741.657387
C14: Scheibendübel Typ B | D14: =(('Gamma-Verfahren_nach_DIN1052'!G32))*(('Gamma-Verfahren_nach_DIN1052'!J32))/2 -> 2806.24304 | E14: =(('Gamma-Verfahren_nach_DIN1052'!H32))*(('Gamma-Verfahren_nach_DIN1052'!K32))/2 -> 911.7291264 | F14: 1870.828693 | G14: 3741.657387
C15: Scheibendübel Typ C1 bis C9 | D15: =(1.5*('Gamma-Verfahren_nach_DIN1052'!G32))*(('Gamma-Verfahren_nach_DIN1052'!J32))/4 -> 2104.68228 | E15: =(1.5*('Gamma-Verfahren_nach_DIN1052'!H32))*(('Gamma-Verfahren_nach_DIN1052'!K32))/4 -> 683.7968448 | F15: 1403.12152 | G15: 2806.24304
C16: Scheibendübel Typ C10, C11 | D16: =(('Gamma-Verfahren_nach_DIN1052'!G32))*(('Gamma-Verfahren_nach_DIN1052'!J32))/2 -> 2806.24304 | E16: =(('Gamma-Verfahren_nach_DIN1052'!H32))*(('Gamma-Verfahren_nach_DIN1052'!K32))/2 -> 911.7291264 | F16: 1870.828693 | G16: 3741.657387
C17: Andere | D17: ='Gamma-Verfahren_nach_DIN1052'!J37 -> 15000 | E17: ='Gamma-Verfahren_nach_DIN1052'!K37 -> 0 | F17: =2/3*D17 -> 10000 | G17: =2*F17 -> 20000
C21: Verbindungsart | D21: Anzahl VM Reihen
C22: Holz-Holz-Verbindung | D22: 1
C23: Holz-Stahl-Verbindung | D23: 2
D24: 3
D25: 4
D26: 5
D27: 6
D28: 7
D29: 8
D30: 9
D31: 10

Sheet Kombinationsbeiwerte_Ψ (hidden)
B2: veränderliche Einwirkung | C2: Ψ0 | D2: Ψ1 | E2: Ψ2 | F2: KLED | H2: Nutzungsklasse | I2: KLED | J2: Kdef | K2: kdef (Spanplatte)
B3: Nutzlasten Qk,N | H3: 1 | I3: ständig | J3: 0.6 | K3: 2.25
B4: Kategorie A: Wohn- und Aufenthaltsräume | C4: 0.7 | D4: 0.5 | E4: 0.3 | F4: mittel | H4: 2 | I4: lang | J4: 0.8 | K4: 3
B5: Kategorie B: Büros | C5: 0.7 | D5: 0.5 | E5: 0.3 | F5: mittel | H5: 3 | I5: mittel | J5: 2
B6: Kategorie C: Versammlungsräume | C6: 0.7 | D6: 0.7 | E6: 0.6 | F6: kurz | I6: kurz
B7: Kategorie D: Verkaufssräume | C7: 0.7 | D7: 0.7 | E7: 0.6 | F7: mittel | I7: sehr kurz
B8: Kategorie E: Lagerräume | C8: 1 | D8: 0.9 | E8: 0.8 | F8: lang
B9: Verkehrslasten Qk,V
B10: Kategorie F: Verkehrsflächen, Fahrzeuglast < 25 kN | C10: 0.7 | D10: 0.7 | E10: 0.6 | F10: mittel
B11: Kategorie G: Flächen für den Betrieb miit Gegengewichtsstaplern | C11: 0.7 | D11: 0.5 | E11: 0.3 | F11: mittel
B12: Kategorie H: Dächer (nicht begehbar) | C12: 0 | D12: 0 | E12: 0 | F12: kurz
B13: Schnee und Eislasten Qk,S
B14: Orte bis NN +1000m | C14: 0.5 | D14: 0.2 | E14: 0 | F14: kurz
B15: Orte über NN +1000m | C15: 0.7 | D15: 0.5 | E15: 0.2 | F15: mittel
B16: Windlasten Qk,W
B21: Holzarten
B22: Vollholz
B23: Brettschichtholz
B24: Sperrholz
B25: Spanplatte P6
A26: ( | B26: Beton | C26: )
B27: Furnierschichtholz
B28: Balkenschichtholz
B29: Brettsperrholz
B30: Massivholzplatten
B31: Spanplatte

Sheet Modifikationsbeiwert Kmod (hidden)
B3: Kmod | C3: NKL | D3: ständig | E3: lang | F3: mittel | G3: kurz | H3: sehr kurz
B4: VH / BSH | C4: 1 | D4: 0.6 | E4: 0.7 | F4: 0.8 | G4: 0.9 | H4: 1.1
C5: 2 | D5: 0.6 | E5: 0.7 | F5: 0.8 | G5: 0.9 | H5: 1.1
C6: 3 | D6: 0.5 | E6: 0.55 | F6: 0.65 | G6: 0.7 | H6: 0.9
B7: Spannplatten | C7: 1 | D7: 0.3 | E7: 0.45 | F7: 0.65 | G7: 0.85 | H7: 1.1
C8: 2 | D8: 0.2 | E8: 0.3 | F8: 0.45 | G8: 0.6 | H8: 0.8

Sheet Werkstoffkenngrößen (hidden)
G2: Festigkeitskennwerte
G3: Zug | H3: Druck | I3: Biegung | J3: Schub/Torsion
B4: Holzeigenschaften | C4: Holzart | D4: E0,mean [N/mm²] | E4: rk [Kg/m³] | F4: Einbaufeuchte | G4: ft,0,k [N/mm²] | H4: fc,0,k [N/mm²] | I4: fm,y,k [N/mm²] | J4: fv,k [N/mm²]
B5: Nadelholz | C5: C16 | D5: 8000 | E5: 310 | F5: <30%
C6: C24 | D6: 11000 | E6: 350 | F6: ≥30% | G6: 14.5 | H6: 21 | I6: 24 | J6: 4
C7: C30 | D7: 12000 | E7: 380 | G7: 19 | H7: 24 | I7: 30 | J7: 4
C8: C35 | D8: 13000 | E8: 400 | G8: 22.5 | H8: 25 | I8: 35 | J8: 4
C9: C40 | D9: 14000 | E9: 420 | G9: 26 | H9: 27 | I9: 40 | J9: 4
B10: Laubholz | C10: D30 | D10: 11000 | E10: 530 | G10: 18 | H10: 24 | I10: 30 | J10: 3.9
C11: D35 | D11: 12000 | E11: 540 | G11: 21 | H11: 25 | I11: 35 | J11: 4.1
C12: D40 | D12: 13000 | E12: 550 | G12: 24 | H12: 27 | I12: 40 | J12: 4.2
C13: D60 | D13: 17000 | E13: 700 | G13: 26 | H13: 33 | I13: 60 | J13: 4.8
B14: BSH | C14: GL24c | D14: 11000 | E14: 365 | G14: 17 | H14: 21.5 | I14: 24 | J14: 3.5
C15: GL24h | D15: 11500 | E15: 385 | G15: 19.2 | H15: 24 | I15: 24 | J15: 3.5
C16: GL28c | D16: 12500 | E16: 390 | G16: 19.5 | H16: 24 | I16: 28 | J16: 3.5
C17: GL28h | D17: 12600 | E17: 425 | G17: 22.3 | H17: 28 | I17: 28 | J17: 3.5
C18: GL30c | D18: 13000 | E18: 390 | G18: 19.5 | H18: 24.5 | I18: 30 | J18: 3.5
C19: GL30h | D19: 13600 | E19: 430 | G19: 24 | H19: 30 | I19: 30 | J19: 3.5
C20: GL32c | D20: 13500 | E20: 400 | G20: 19.5 | H20: 24.5 | I20: 32 | J20: 3.5
C21: GL32h | D21: 14200 | E21: 440 | G21: 25.6 | H21: 32 | I21: 32 | J21: 3.5
B22: Sperrholz | C22: F20/10 E40/20 | D22: 4000 | E22: 350
C23: F20/15 E30/25 | D23: 4000 | E23: 350
C24: F40/30 E60/40 | D24: 4400 | E24: 600
C25: F50/25 E70/25 | D25: 5500 | E25: 600
C26: F60/10 E90/10 | D26: 5500 | E26: 600
B27: Spanplatte P6 | C27: t >6 bis 13 | D27: 2500 | E27: 650 | G27: 10.5 | H27: 14.1 | I27: 16.5 | J27: 7.8
C28: t >13 bis 20 | D28: 2400 | E28: 600 | G28: 9.5 | H28: 13.3 | I28: 15 | J28: 7.3
C29: t >20 bis 25 | D29: 2100 | E29: 550 | G29: 8.5 | H29: 12.8 | I29: 13.3 | J29: 6.8
C30: t >25 bis 32 | D30: 1900 | E30: 550 | G30: 8.3 | H30: 12.2 | I30: 12.5 | J30: 6.5
C31: t >32 bis 40 | D31: 1800 | E31: 500 | G31: 7.8 | H31: 11.9 | I31: 11.7 | J31: 6
C32: t >40 | D32: 1700 | E32: 500 | G32: 7.5 | H32: 10.4 | I32: 10 | J32: 5.5
B34: Beton | C34: C12/15 | D34: 27000 | E34: 2500 | G34: 1.6 | H34: 12 | I34: 20
C35: C16/20 | D35: 29000 | E35: 2500 | G35: 1.9 | H35: 16 | I35: 24
C36: C20/25 | D36: 30000 | E36: 2500 | G36: 2.2 | H36: 20 | I36: 28
C37: C25/30 | D37: 31000 | E37: 2500 | G37: 2.6 | H37: 25 | I37: 33
C38: C30/37 | D38: 33000 | E38: 2500 | G38: 2.9 | H38: 30 | I38: 38
C39: C35/45 | D39: 34000 | E39: 2500 | G39: 3.2 | H39: 35 | I39: 43
C40: C40/50 | D40: 35000 | E40: 2500 | G40: 3.5 | H40: 40 | I40: 48
C41: C45/55 | D41: 36000 | E41: 2500 | G41: 3.8 | H41: 45 | I41: 53
C42: C50/60 | D42: 37000 | E42: 2500 | G42: 4.1 | H42: 50 | I42: 58

Sheet Statisches_System (hidden)
C4: Tragsystem | D4: Abstand M=0-Punkte | E4: Durchbiegung w
C5: Einfeldträger | D5: ='Gamma-Verfahren_nach_DIN1052'!$D$13 -> 6 | E5: =('Gamma-Verfahren_nach_DIN1052'!G10*('Gamma-Verfahren_nach_DIN1052'!D13:E13)^4)/(76.8*'Gamma-Verfahren_nach_DIN1052'!E167) -> 
C6: Durchlaufträger | D6: =0.8*'Gamma-Verfahren_nach_DIN1052'!$D$13 -> 4.8
C7: Kragarm | D7: =2*'Gamma-Verfahren_nach_DIN1052'!$D$13 -> 12
C10: Anzahl Querschnitte | D10: Querschnittstypen
C11: 1 | D11: A
C12: 2 | D12: B
C13: 3 | D13: C
